{"text_format":"3","workbook":"xlsx","n_sheets":1,"sheets":["Неприбутковий бюджет"],"not_rendered":{"charts":2,"images":1,"defined_names":1},"read":"whole","date_system":"1900"}

{"sheet":"Неприбутковий бюджет","index":0,"n_rows":40,"n_cols":7,"rows_kept":40,"merged":[[16,1,16,6],[21,1,21,5]]}
[null,"Неприбутковий бюджет",{"$nulls":3},"ФІНАНСОВИЙ РІК",2012]
{"$rows_empty":7}
[null,null,{"$f":"CONCATENATE(\"FY \",Фінансовий_рік-1)","v":"FY 2011"},{"$f":"CONCATENATE(\"FY \",Фінансовий_рік)","v":"FY 2012"},{"$f":"CONCATENATE(\"FY \",Фінансовий_рік)","v":"FY 2012"},{"$f":"CONCATENATE(\"FY \",Фінансовий_рік)","v":"FY 2012"},{"$f":"CONCATENATE(\"FY \",Фінансовий_рік)","v":"FY 2012"}]
[null,"ПРИБУТОК","ТОРІК","ЗАПЛАНОВАНО","ФАКТИЧНО","РІЗНИЦЯ","+/- ТОРІК"]
[null,"Збори коштів і відповідальні особи",{"v":150000,"d":"150000.00"},{"v":200000,"d":"200000.00"},{"v":180000,"d":"180000.00"},{"$f":"Таблиця_прибутків[[#This Row],[ФАКТИЧНО]]-Таблиця_прибутків[[#This Row],[ЗАПЛАНОВАНО]]","v":{"v":-20000,"d":"-20000.00 "}},{"$f":"Таблиця_прибутків[[#This Row],[ФАКТИЧНО]]-Таблиця_прибутків[[#This Row],[ТОРІК]]","v":{"v":30000,"d":"30000.00"}}]
[null,"Фонд",{"v":50000,"d":"50000.00"},{"v":50000,"d":"50000.00"},{"v":50000,"d":"50000.00"},{"$f":"Таблиця_прибутків[[#This Row],[ФАКТИЧНО]]-Таблиця_прибутків[[#This Row],[ЗАПЛАНОВАНО]]","v":{"v":0,"d":"0.00"}},{"$f":"Таблиця_прибутків[[#This Row],[ФАКТИЧНО]]-Таблиця_прибутків[[#This Row],[ТОРІК]]","v":{"v":0,"d":"0.00"}}]
[null,"Пожертви",{"v":30000,"d":"30000.00"},{"v":40000,"d":"40000.00"},{"v":20000,"d":"20000.00"},{"$f":"Таблиця_прибутків[[#This Row],[ФАКТИЧНО]]-Таблиця_прибутків[[#This Row],[ЗАПЛАНОВАНО]]","v":{"v":-20000,"d":"-20000.00 "}},{"$f":"Таблиця_прибутків[[#This Row],[ФАКТИЧНО]]-Таблиця_прибутків[[#This Row],[ТОРІК]]","v":{"v":-10000,"d":"-10000.00 "}}]
[null,"Відсотковий дохід",{"$nulls":3},{"$f":"Таблиця_прибутків[[#This Row],[ФАКТИЧНО]]-Таблиця_прибутків[[#This Row],[ЗАПЛАНОВАНО]]","v":{"v":0,"d":"0.00"}},{"$f":"Таблиця_прибутків[[#This Row],[ФАКТИЧНО]]-Таблиця_прибутків[[#This Row],[ТОРІК]]","v":{"v":0,"d":"0.00"}}]
[null,"Різне",{"$nulls":3},{"$f":"Таблиця_прибутків[[#This Row],[ФАКТИЧНО]]-Таблиця_прибутків[[#This Row],[ЗАПЛАНОВАНО]]","v":{"v":0,"d":"0.00"}},{"$f":"Таблиця_прибутків[[#This Row],[ФАКТИЧНО]]-Таблиця_прибутків[[#This Row],[ТОРІК]]","v":{"v":0,"d":"0.00"}}]
[null,"ПІДСУМКИ",{"$f":"SUBTOTAL(109,Таблиця_прибутків[ТОРІК])","v":{"v":230000,"d":"230,000.00"}},{"$f":"SUBTOTAL(109,Таблиця_прибутків[ЗАПЛАНОВАНО])","v":{"v":290000,"d":"290,000.00"}},{"$f":"SUBTOTAL(109,Таблиця_прибутків[ФАКТИЧНО])","v":{"v":250000,"d":"250,000.00"}},{"$f":"SUBTOTAL(109,Таблиця_прибутків[РІЗНИЦЯ])","v":{"v":-40000,"d":"-40,000.00"}},{"$f":"SUBTOTAL(105,Таблиця_прибутків[+/- ТОРІК])","v":{"v":-10000,"d":"-10,000.00"}}]
{"$rows_empty":8}
[null,null,{"$f":"CONCATENATE(\"FY \",Фінансовий_рік-1)","v":"FY 2011"},{"$f":"CONCATENATE(\"FY \",Фінансовий_рік)","v":"FY 2012"},{"$f":"CONCATENATE(\"FY \",Фінансовий_рік)","v":"FY 2012"},{"$f":"CONCATENATE(\"FY \",Фінансовий_рік)","v":"FY 2012"},{"$f":"CONCATENATE(\"FY \",Фінансовий_рік)","v":"FY 2012"}]
[null,"ВИТРАТИ","ТОРІК","ЗАПЛАНОВАНО","ФАКТИЧНО","РІЗНИЦЯ","+/- ТОРІК"]
[null,"Зарплата",{"v":15000,"d":"15,000.00"},{"v":30000,"d":"30,000.00"},{"v":30000,"d":"30,000.00"},{"$f":"Таблиця_витрат[[#This Row],[ФАКТИЧНО]]-Таблиця_витрат[[#This Row],[ЗАПЛАНОВАНО]]","v":{"v":0,"d":"0.00"}},{"$f":"Таблиця_витрат[[#This Row],[ФАКТИЧНО]]-Таблиця_витрат[[#This Row],[ТОРІК]]","v":{"v":15000,"d":"15,000.00"}}]
[null,"Пільги",{"v":5000,"d":"5,000.00"},{"v":7500,"d":"7,500.00"},{"v":7800,"d":"7,800.00"},{"$f":"Таблиця_витрат[[#This Row],[ФАКТИЧНО]]-Таблиця_витрат[[#This Row],[ЗАПЛАНОВАНО]]","v":{"v":300,"d":"300.00"}},{"$f":"Таблиця_витрат[[#This Row],[ФАКТИЧНО]]-Таблиця_витрат[[#This Row],[ТОРІК]]","v":{"v":2800,"d":"2,800.00"}}]
[null,"Оренда",{"v":6000,"d":"6,000.00"},{"v":6000,"d":"6,000.00"},{"v":6000,"d":"6,000.00"},{"$f":"Таблиця_витрат[[#This Row],[ФАКТИЧНО]]-Таблиця_витрат[[#This Row],[ЗАПЛАНОВАНО]]","v":{"v":0,"d":"0.00"}},{"$f":"Таблиця_витрат[[#This Row],[ФАКТИЧНО]]-Таблиця_витрат[[#This Row],[ТОРІК]]","v":{"v":0,"d":"0.00"}}]
[null,"Вигоди",{"v":1000,"d":"1,000.00"},{"v":1200,"d":"1,200.00"},{"v":1150,"d":"1,150.00"},{"$f":"Таблиця_витрат[[#This Row],[ФАКТИЧНО]]-Таблиця_витрат[[#This Row],[ЗАПЛАНОВАНО]]","v":{"v":-50,"d":"-50.00 "}},{"$f":"Таблиця_витрат[[#This Row],[ФАКТИЧНО]]-Таблиця_витрат[[#This Row],[ТОРІК]]","v":{"v":150,"d":"150.00"}}]
[null,"Подорожі й зустрічі",{"v":2500,"d":"2,500.00"},{"v":2000,"d":"2,000.00"},{"v":2800,"d":"2,800.00"},{"$f":"Таблиця_витрат[[#This Row],[ФАКТИЧНО]]-Таблиця_витрат[[#This Row],[ЗАПЛАНОВАНО]]","v":{"v":800,"d":"800.00"}},{"$f":"Таблиця_витрат[[#This Row],[ФАКТИЧНО]]-Таблиця_витрат[[#This Row],[ТОРІК]]","v":{"v":300,"d":"300.00"}}]
[null,"Професійна винагорода",{"$nulls":3},{"$f":"Таблиця_витрат[[#This Row],[ФАКТИЧНО]]-Таблиця_витрат[[#This Row],[ЗАПЛАНОВАНО]]","v":{"v":0,"d":"0.00"}},{"$f":"Таблиця_витрат[[#This Row],[ФАКТИЧНО]]-Таблиця_витрат[[#This Row],[ТОРІК]]","v":{"v":0,"d":"0.00"}}]
[null,"Маркетинг і реклама",{"$nulls":3},{"$f":"Таблиця_витрат[[#This Row],[ФАКТИЧНО]]-Таблиця_витрат[[#This Row],[ЗАПЛАНОВАНО]]","v":{"v":0,"d":"0.00"}},{"$f":"Таблиця_витрат[[#This Row],[ФАКТИЧНО]]-Таблиця_витрат[[#This Row],[ТОРІК]]","v":{"v":0,"d":"0.00"}}]
[null,"Страхування",{"$nulls":3},{"$f":"Таблиця_витрат[[#This Row],[ФАКТИЧНО]]-Таблиця_витрат[[#This Row],[ЗАПЛАНОВАНО]]","v":{"v":0,"d":"0.00"}},{"$f":"Таблиця_витрат[[#This Row],[ФАКТИЧНО]]-Таблиця_витрат[[#This Row],[ТОРІК]]","v":{"v":0,"d":"0.00"}}]
[null,"Телефон",{"$nulls":3},{"$f":"Таблиця_витрат[[#This Row],[ФАКТИЧНО]]-Таблиця_витрат[[#This Row],[ЗАПЛАНОВАНО]]","v":{"v":0,"d":"0.00"}},{"$f":"Таблиця_витрат[[#This Row],[ФАКТИЧНО]]-Таблиця_витрат[[#This Row],[ТОРІК]]","v":{"v":0,"d":"0.00"}}]
[null,"Інтернет-послуги (веб-сайт, розташування для нарад тощо)",{"$nulls":3},{"$f":"Таблиця_витрат[[#This Row],[ФАКТИЧНО]]-Таблиця_витрат[[#This Row],[ЗАПЛАНОВАНО]]","v":{"v":0,"d":"0.00"}},{"$f":"Таблиця_витрат[[#This Row],[ФАКТИЧНО]]-Таблиця_витрат[[#This Row],[ТОРІК]]","v":{"v":0,"d":"0.00"}}]
[null,"Обладнання",{"$nulls":3},{"$f":"Таблиця_витрат[[#This Row],[ФАКТИЧНО]]-Таблиця_витрат[[#This Row],[ЗАПЛАНОВАНО]]","v":{"v":0,"d":"0.00"}},{"$f":"Таблиця_витрат[[#This Row],[ФАКТИЧНО]]-Таблиця_витрат[[#This Row],[ТОРІК]]","v":{"v":0,"d":"0.00"}}]
[null,"Приладдя",{"$nulls":3},{"$f":"Таблиця_витрат[[#This Row],[ФАКТИЧНО]]-Таблиця_витрат[[#This Row],[ЗАПЛАНОВАНО]]","v":{"v":0,"d":"0.00"}},{"$f":"Таблиця_витрат[[#This Row],[ФАКТИЧНО]]-Таблиця_витрат[[#This Row],[ТОРІК]]","v":{"v":0,"d":"0.00"}}]
[null,"Пошта",{"$nulls":3},{"$f":"Таблиця_витрат[[#This Row],[ФАКТИЧНО]]-Таблиця_витрат[[#This Row],[ЗАПЛАНОВАНО]]","v":{"v":0,"d":"0.00"}},{"$f":"Таблиця_витрат[[#This Row],[ФАКТИЧНО]]-Таблиця_витрат[[#This Row],[ТОРІК]]","v":{"v":0,"d":"0.00"}}]
[null,"ПІДСУМКИ",{"$f":"SUBTOTAL(109,Таблиця_витрат[ТОРІК])","v":{"v":29500,"d":"29,500.00"}},{"$f":"SUBTOTAL(109,Таблиця_витрат[ЗАПЛАНОВАНО])","v":{"v":46700,"d":"46,700.00"}},{"$f":"SUBTOTAL(109,Таблиця_витрат[ФАКТИЧНО])","v":{"v":47750,"d":"47,750.00"}},{"$f":"SUBTOTAL(109,Таблиця_витрат[РІЗНИЦЯ])","v":{"v":1050,"d":"1,050.00"}},{"$f":"SUBTOTAL(109,Таблиця_витрат[+/- ТОРІК])","v":{"v":18250,"d":"18,250.00"}}]